Cogmind - Beta 12 @@@ ROGUE MODE // 2023.05.19 @ 19:35:32 Player: puncake Result: Destroyed by Y-45 Defender with Heavy Assault Rifle Performance ------------- Evolutions (2) 1000 Regions Visited (3) 600 Robots Destroyed (10) 50 Value Destroyed (123) 123 Prototype IDs (2) 40 Alien Tech Used (0) 0 Bonus (0) 0 TOTAL SCORE: 1813 Bonus ------- None Cogmind --------- Core Integrity 0/550 Matter 109/300 Energy 100/100 System Corruption 0% Temperature Cool (9) Movement Core (50) Location -8/Materials Parts ------- > --- POWER (1) -------- (None) > --- PROPULSION (4) --- (None) > --- UTILITY (4) ------ Advanced Visual Processing Unit Hacking Suite > --- WEAPON (2) ------- (None) > --- INVENTORY (5) ---- Light Deuterium Engine Light Deuterium Engine Nuclear Core Hacking Suite Heavy Mace Peak State ------------ > --- POWER ------------ Light Deuterium Engine > --- PROPULSION ------- Flight Unit VTOL Module > --- UTILITY ---------- Advanced Visual Processing Unit Improved Terrain Scanner Hacking Suite Hacking Suite > --- WEAPON ----------- Axe > --- INVENTORY -------- Light Ion Engine Light Deuterium Engine Nuclear Core Hacking Suite [Rating: 22] Favorites ----------- Power Light Ion Engine Engine Light Ion Engine Propulsion Aluminum Leg Leg Aluminum Leg Flight Unit Flight Unit Utility ECM Suite Device ECM Suite Storage Medium Storage Unit Processor Advanced Visual Processing Unit Hackware Hacking Suite Weapon Medium Laser Energy Gun Medium Laser Ballistic Cannon Flak Cannon Special Weapon Welding Torch Slashing Weapon Axe Special Melee Weapon Datajack Build | -11 -10 -9 -8 ------- Run | Jun Mat Mat Mat Slots Evolved 4 | . . 2 2 Power . | . . . . Propulsion 2 | . . 1 1 Utility 2 | . . 1 1 Weapon . | . . . . Parts Attached 32 | 4 5 10 13 Power 8 | 1 . . 7 Engine 8 | 1 . . 7 Core . | . . . . Reactor . | . . . . Propulsion 6 | 2 . 2 2 Treads . | . . . . Leg 2 | 2 . . . Wheel . | . . . . Hover . | . . . . Flight 4 | . . 2 2 Utility 11 | 1 3 4 3 Device 6 | . 2 2 2 Storage 2 | 1 1 . . Processor 1 | . . 1 . Hackware 2 | . . 1 1 Protection . | . . . . Artifact . | . . . . Weapon 7 | . 2 4 1 Energy Gun 2 | . 2 . . Energy Cannon . | . . . . Ballistic Gun . | . . . . Ballistic Cannon 2 | . . 2 . Launcher . | . . . . Special Weapon 1 | . . 1 . Impact Weapon . | . . . . Slashing Weapon 1 | . . . 1 Piercing Weapon . | . . . . Special Melee Weapon 1 | . . 1 . Unidentified Prototypes . | . . . . Parts Lost 7 | . . . 7 Power 2 | . . . 2 Propulsion 3 | . . . 3 Utility 1 | . . . 1 Weapon 1 | . . . 1 Highest Loss Streak 3 | . . . 3 To Critical Strikes . | . . . . Average Slot Usage (%) 79 | . 92 86 60 Engine 10 | . 14 11 6 Leg 14 | . 28 18 . Flight 5 | . . 3 11 Device 11 | . 7 14 11 Storage 7 | . 14 9 . Processor 6 | . . 8 9 Hackware 4 | . . . 13 Energy Gun 9 | . 28 5 . Ballistic Cannon 5 | . . 13 . Special Weapon 1 | . . 1 3 Special Melee Weapon 1 | . . 1 3 Naked Turns . | . . . . Heaviest Build 28 | 8 19 28 8 Greatest Support 20 | 20 20 20 8 Greatest Overweight (x) 1 | . . 1 . Average Overweight (x) . | . . . . Largest Inventory Capacity 10 | 8 10 10 5 Average Capacity 7 | 7 8 9 5 Most Carried 9 | 5 7 9 5 Average Carried 5 | 2 5 6 4 Final Capacity 10 | 8 10 5 5 Final Carried 7 | 4 7 5 5 Class Distribution -------------------- 63% | Mutant 19% | Scavenger-Mutant 17% | Hacker-Mutant Dominant Class ---------------- Mutant | -10/Materials Mutant | -9/Materials Hacker-Mutant | -8/Materials Resources | -11 -10 -9 -8 ----------- Run | Jun Mat Mat Mat Matter Collected 414 | 212 48 154 . Remotely . | . . . . Salvage Created 254 | . 118 136 . Parts 16 | . 5 11 . Haulers Intercepted . | . . . . Recyclers Shooed 1 | . 1 . . Parts Field Recycled . | . . . . Retrieved Matter . | . . . . Parts Self-Destructed . | . . . . Prevented . | . . . . Kills | -11 -10 -9 -8 ------- Run | Jun Mat Mat Mat Combat Hostiles Destroyed 5 | . . 5 . Cannons 5 | . . 5 . Classes Destroyed 6 | . 3 3 . Builder 1 | . 1 . . Recycler 2 | . 1 1 . Operator 1 | . 1 . . Watcher 1 | . . 1 . Swarmer 4 | . . 4 . Grunt 1 | . . 1 . Best Kill Streak 5 | . 2 5 . Combat Bots Only 4 | . . 4 . Max Kills in Single Turn 2 | . 2 1 . Gunslinging . | . . . . Exploded . | . . . . Melee . | . . . . Uniques/NPCs Destroyed . | . . . . Combat | -11 -10 -9 -8 -------- Run | Jun Mat Mat Mat Damage Taken 951 | . 24 135 792 Core 560 | . . 10 550 Absorbed by Shields . | . . . . Regen/Repaired (Parts) 9 | . . . 9 Core Remaining (%) 99 | 100 100 97 . Volleys Fired 21 | . 6 12 3 Largest 2 | . 2 2 1 Hottest 100 | . 100 100 20 Shots Fired 39 | . 12 24 3 Gun 14 | . 12 2 . Cannon 22 | . . 22 . Launcher . | . . . . Special 3 | . . . 3 Kinetic 22 | . . 22 . Thermal 17 | . 12 2 3 Explosive . | . . . . Electromagnetic . | . . . . Robot Hit Streak 7 | . 3 7 1 Robot Miss Streak 6 | . 1 6 1 Penetration Max . | . . . . Secondary Targets . | . . . . Shots Hit Robots 37 | . 7 24 6 Core Hits 24 | . 5 17 2 Critical Kills . | . . . . Critical Parts Destroyed . | . . . . Critical Strikes 2 | . 2 . . Burn 2 | . 2 . . Melee Attacks 8 | . . 4 4 Impact . | . . . . Slashing 3 | . . . 3 Piercing . | . . . . Sneak Attacks 3 | . . 3 . Combat Hostiles . | . . . . Follow-up Attacks . | . . . . Damage Inflicted 461 | . 99 253 109 Guns 99 | . 99 . . Cannons 253 | . . 253 . Explosions . | . . . . Melee 95 | . . . 95 Ramming 7 | . . . 7 Kinetic 253 | . . 253 . Thermal 106 | . 99 . 7 Explosive . | . . . . Electromagnetic . | . . . . Impact . | . . . . Slashing 95 | . . . 95 Piercing . | . . . . Highest Corruption 1 | . . 1 . Average Corruption 1 | . . 1 . Corruption Purged . | . . . . Corruption Blocked . | . . . . Effects 3 | . . 3 . Message Errors 1 | . . 1 . Energy Discharges 1 | . . 1 . Data Loss (minor) 1 | . . 1 . Overload Shots . | . . . . Overflow Damage . | . . . . Projectiles . | . . . . Explosions . | . . . . Melee . | . . . . Knockbacks 4 | . . 4 . Impact . | . . . . Kinetic 4 | . . 4 . Secondary . | . . . . Self-Inflicted Damage 2 | . . . 2 Shots . | . . . . Rammed 4 | . . . 4 Targets Rammed 4 | . . . 4 Kicked . | . . . . Crushed . | . . . . Highest Temperature 156 | . 156 90 5 Average Temperature 47 | . 63 38 4 Received Heat Transfer 381 | . . 12 369 Siege Activations . | . . . . Robots Corrupted . | . . . . Combat Hostiles . | . . . . Parts Fried . | . . . . Impact Corruptions . | . . . . Robots Melted . | . . . . Combat Hostiles . | . . . . Parts Melted 3 | . 3 . . Heat Transferred 494 | . 444 . 50 Parts Sabotaged . | . . . . Parts Stolen . | . . . . Parts Stripped . | . . . . Power Chain Reactions . | . . . . Missiles Intercepted . | . . . . Alert | -11 -10 -9 -8 ------- Run | Jun Mat Mat Mat Peak Influence 228 | . 42 228 120 Initial 17 | . . 17 11 Average 57 | . 32 83 50 Maximum Alert Level 1 | . . 1 . Low Security (%) 98 | 100 100 95 100 Level 1 1 | . . 4 . Level 2 . | . . . . Level 3 . | . . . . Level 4 . | . . . . Level 5 . | . . . . High Security . | . . . . Max Security . | . . . . Squads Dispatched 4 | . . 3 1 Investigation 1 | . . 1 . Extermination . | . . . . Reinforcement 3 | . . 2 1 Assault . | . . . . Garrison . | . . . . Intercept . | . . . . Searches Triggered . | . . . . Construction Impeded . | . . . . Haulers Reinforced . | . . . . Active Scanning Responses . | . . . . Cargo Convoy Interrupts . | . . . . Stealth | -11 -10 -9 -8 --------- Run | Jun Mat Mat Mat Distress Signals 3 | . . . 3 Communications Jammed . | . . . . Distress Signals . | . . . . Times Spotted 34 | . 1 9 24 Peak Tracking Total 18 | . 1 4 18 Tactical Retreats 4 | . . . 4 Traps | -11 -10 -9 -8 ------- Run | Jun Mat Mat Mat Traps Triggered 1 | . 1 . . Indirectly . | . . . . Trap Hack Attempts . | . . . . Triggered . | . . . . Disarmed . | . . . . Reprogrammed . | . . . . Reused . | . . . . Traps Extracted . | . . . . Installed . | . . . . Triggered . | . . . . Machines | -11 -10 -9 -8 ---------- Run | Jun Mat Mat Mat Machines Disabled . | . . . . Max in Single Turn . | . . . . Machines Repaired . | . . . . Machines Sabotaged . | . . . . Overloaded Fab Kills . | . . . . Hacking | -11 -10 -9 -8 --------- Run | Jun Mat Mat Mat Machines Accessed 9 | . 2 3 4 Terminals 6 | . 2 3 1 Fabricators . | . . . . Repair Stations 1 | . . . 1 Recycling Units 1 | . . . 1 Scanalyzers 1 | . . . 1 Garrison Access . | . . . . Total Hacks 28 | . 8 13 7 Successful 17 | . 6 4 7 Failed 11 | . 2 9 . Catastrophic 1 | . . 1 . Database Lockouts . | . . . . Manual . | . . . . Terminals 22 | . 8 13 1 Fabricators . | . . . . Repair Stations 2 | . . . 2 Recycling Units 2 | . . . 2 Scanalyzers 2 | . . . 2 Garrison Access . | . . . . Terminal Hacks 11 | . 6 4 1 Record 3 | . 2 1 . Prototype ID Bank 1 | . 1 . . Branch Access Points 2 | . 1 1 . Emergency Access Points 1 | . . . 1 Terminal Index 1 | . 1 . . Alert Level 2 | . 1 1 . Hauler Manifests 1 | . . 1 . Fabricator Hacks . | . . . . Repair Station Hacks 2 | . . . 2 Scan Component 1 | . . . 1 Repair 1 | . . . 1 Recycling Unit Hacks 2 | . . . 2 Report Inventory 1 | . . . 1 Retrieve Components 1 | . . . 1 Scanalyzer 2 | . . . 2 Insert Component 1 | . . . 1 Analyze 1 | . . . 1 Garrison Access Hacks . | . . . . Unauthorized Hacks . | . . . . Terminals . | . . . . Fabricators . | . . . . Repair Stations . | . . . . Recycling Units . | . . . . Scanalyzers . | . . . . Garrison Access . | . . . . Data Cores Recovered 1 | . 1 . . Used . | . . . . Hacking Detections 6 | . 2 2 2 Full Trace Events 1 | . . 1 . Feedback Events 1 | . . 1 . Corruption 1 | . . 1 . Feedback Blocked . | . . . . Robot Schematics Acquired . | . . . . Robots Built . | . . . . Authchips . | . . . . Time . | . . . . Total Robot Build Rating . | . . . . Part Schematics Acquired 1 | . . . 1 Parts Built . | . . . . Authchips . | . . . . Time . | . . . . Total Part Build Rating . | . . . . Parts Repaired 1 | . . . 1 Time 26 | . . . 26 Parts Recycled . | . . . . Recycled Matter . | . . . . Retrieved Matter . | . . . . Retrieved Components 3 | . . . 3 Parts Scanalyzed 1 | . . . 1 Part Schematics Acquired 1 | . . . 1 Parts Damaged . | . . . . Bothacking | -11 -10 -9 -8 ------------ Run | Jun Mat Mat Mat Used RIF Installer . | . . . . Robots Hacked 4 | . . 4 . Non-combat 4 | . . 4 . Combat . | . . . . Robot Hacks Applied 4 | . . 4 . parse_system 2 | . . 2 . no_distress 1 | . . 1 . find_recycling 1 | . . 1 . Relay Couplers Released . | . . . . Fabnet Peak Effective % . | . . . . Robots Rewired . | . . . . Allies Hacked . | . . . . Hacks Repelled . | . . . . Allies | -11 -10 -9 -8 -------- Run | Jun Mat Mat Mat Total Allies . | . . . . Largest Group . | . . . . Highest-Rated Group . | . . . . Highest-Rated Ally . | . . . . Total Orders . | . . . . Ally Attacks . | . . . . Total Damage . | . . . . Kills . | . . . . Allies Corrupted . | . . . . Allies Melted . | . . . . Intel | -11 -10 -9 -8 ------- Run | Jun Mat Mat Mat Robot Analysis Total . | . . . . Derelict Logs Recovered . | . . . . Drone Launches . | . . . . Drone Recoveries . | . . . . Exploration | -11 -10 -9 -8 ------------- Run | Jun Mat Mat Mat Turns Passed 1000 | 56 226 407 311 Spaces Moved 877 | 44 161 200 472 Core 98 | 11 . . 87 Treads . | . . . . Legs 341 | 33 161 147 . Wheels . | . . . . Hover . | . . . . Flight 438 | . . 53 385 Fastest Speed 34 | 50 120 37 34 Average Speed 76 | 102 120 122 40 Slowest Speed 190 | 120 120 190 50 Overloaded Moves . | . . . . Propulsion Burnouts . | . . . . Robots Hopped 2 | . . 2 . Cave-ins Triggered . | . . . . Exploration Rate (%) 21 | 3 23 21 38 Regions Visited 3 Branch Regions . Pre-discovered Areas . | . . . . Known Exits Taken . | . . . . Unknown Exits Taken 3 | 1 1 1 . Scrap Searched . | . . . . Spaces Dug . | . . . . Terrain Destroyed . | . . . . Melee . | . . . . Projectile . | . . . . AOE . | . . . . Terrain Rammed . | . . . . Walls Destroyed . | . . . . Machines Disabled . | . . . . Actions | -11 -10 -9 -8 --------- Run | Jun Mat Mat Mat Total 1157 | 55 181 338 583 Wait 172 | . 2 94 76 Move 871 | 43 160 196 472 Hop 1 | . . 1 . Pick Up 29 | 8 7 9 5 Fast Attach 4 | . . 2 2 Attach 20 | 4 3 7 6 Detach 1 | . . . 1 Swap 8 | . 2 1 5 Drop 18 | . 1 12 5 Fire 21 | . 6 12 3 Melee 8 | . . 4 4 Ram 4 | . . . 4 Kick . | . . . . Crush . | . . . . Escape Stasis . | . . . . Rewire . | . . . . Trap . | . . . . Miscellaneous . | . . . . Route ------- -11/Junkyard -10/Materials (discovered 3 exits: *Mat / Min x2) -9/Materials (discovered 3 exits: *Mat / Min / Sto) -8/Materials History --------- Turn | Location | Event 8 | -11/Junkyard | Discovered new exit (range 16) 57 | -11/Junkyard | Entered Materials 240 | -10/Materials | Identified exit to Mines 272 | -10/Materials | Discovered new exit (range 10) 283 | -10/Materials | Entered another Materials area 283 | -9/Materials | Evolved 2 slots: Propulsion x1, Utility x1 310 | -9/Materials | Build established: Mutant 361 | -9/Materials | Identified exit to Mines 361 | -9/Materials | Identified exit to Storage 677 | -9/Materials | Discovered new exit (range 9) 690 | -9/Materials | Entered another Materials area 690 | -8/Materials | Evolved 2 slots: Propulsion x1, Utility x1 834 | -8/Materials | Repaired Flight Unit? 967 | -8/Materials | Core integrity fell below 50% 971 | -8/Materials | Lost 3 parts (1p2n) 988 | -8/Materials | Core integrity fell below 20% 1001 | -8/Materials | Destroyed by Y-45 Defender with Heavy Assault Rifle Last Messages --------------- 00876_ Scanalyzer disabled. 00877_ Critical hit (Burn: +37). 00879_ Dropped Axe. 00881_ G-47 Trooper destroyed. 00889_ Acquired Hvy. Mace. 00904_ Acquired Flight Unit. 00906_ Flight Unit destroyed. 00927_ Critical hit (Burn: +37). 00929_ Lgt. Ion Engine destroyed. 00934_ W-25 Informer sends out distress signal. 00940_ Flight Unit destroyed. 00943_ Dropped Imp. Terrain Scanner. 00950_ Slammed into Y-45 Defender. 00951_ Adv. Visual Processing Unit broken. 00951_ Destabilizing: Short circuit. 00952_ Slammed into K-01 Serf. 00996_ Slammed into S-10 Pest. 01000_ U-05 Engineer lays Concrete. 01001_ S-10 Pest destroyed. 01001_ Hacking Suite destroyed. Map ----- +----------------------------------------------------+ | ?????????????????????????????????????????????????? | | ?????????????????????????????????????????????????? | | ?????????????????????????????????????????????????? | | ?????????????????????????????????????????????????? | | ?????????????????????????????????????????????????? | | ?????????????????????????????????????????????????? | | ?????????????????????????????????????????????????? | | ?????????????????????????????????????????????????? | | ?????????????????????????????????????????????????? | | ?????????????????????????????????????????????????? | | ?????? ??????????????????????????????????????????? | | ??? ??????????????????????????????????????????? | | ??? ??????????????????????????????????????????? | | ???# ??????????????????????????????????????????? | | ???# ??????????????????????????????????????????? | | ???# ???#+#????????????????????????????????????? | | ???# #### ###??????????????????????????????????? | | ???# ###????????????????????????????????? | | ???+ ?????????????????????????????????? | | ???# T #??????????????????????????????????? | | ???# ^ #???????????????????????????????????? | | ???# ! ########??????##+###????????????????? | | ???# ## ####### ####### ?????????? | | ???# Y g u Y ????????? | | ???# Y s %u ????????? | | ???# ! ! gasr @ ????????? | | ???# ######## s ### ### = #####????????????? | | #### ##########+#### #?? ##????????????????? | | # ## # ###??? #?????????????????? | | # ## ##????????#?????????????????? | | "" + ## """ """ #???????????????????????????? | | "" # ## """ """ #???????????????????????????? | | "" # #? """ """ #???????????????????????????? | | # ###############???????????????????????????? | | #### # ??????????????????????????????????? | | # # """""??????????????????????????????????? | | # # """""??????????????????????????????????? | | / + """""??????????????????????????????????? | | # # #????????????????????????????????? | | ""# # """"" #????????????????????????????????? | | T?# # """"" #????????????????????????????????? | | "?# # """""??????????????????????????????????? | | ??# # ???????????????????????????????????? | | #### ########??????????????????????????????????? | | + #?????????????????????????????????????????? | | # #?????????????????????????????????????????? | | " # #?????????????????????????????????????????? | | " # #?????????????????????????????????????????? | | " !# #?????????????????????????????????????????? | | # #?????????????????????????????????????????? | +----------------------------------------------------+ Best States ------------- Heat Dissipation 31 Energy Generation 14 Energy Capacity 140 Matter Stores 300 Matter Capacity 300 Sight Range 20 Terrain Scan Range 16 Terrain Scan Density 10 ECM Strength 1 Evasion (%) 62 Offensive Hacking 20 Item Schematics ----------------- Hacking Suite | -8/Materials | Scanalyzed Robot Schematics ------------------ None Fabricated ------------ Nothing Alien Tech Used ----------------- None Achievements -------------- None Challenges ------------ None Game ------ Seed AlertExplosiveArchive Manual? 0 Play Time 00:22:09 Cumulative 27.4 hours Start 2023.05.19 @ 19:14:04 End 2023.05.19 @ 19:35:32 Sessions 1 Manual Loads 0 Difficulty Rogue Special Mode None Game No. 35 Rogue 35 Adventurer 0 Explorer 0 Win Type - Total 0 Types 0/0/0/0/0/0/0/0/0 Lore% 17 Gallery% 39 Achievement% 26 Wizard Run 0 Options --------- ASCII 1 Keyboard 0 Movement Mouse Keybinds 0 Fullscreen 1 Font 18/X11 Map View 76x50 Tactical HUD 1 Map Filters NONE Filters NONE Steam 1 RUN: 26b27cdb-61b6-4de5-aa51-33510aceb11e